[Event "OBEM 2019"]
[Site "Bremen"]
[Date "2019.04.16"]
[Round "5.4"]
[White "Sommer, Andreas"]
[Black "Pienski, Olaf"]
[Result "0-1"]
[ECO "A41"]
[WhiteElo "1848"]
[BlackElo "2081"]
[Annotator "NA"]
[PlyCount "77"]
[EventDate "2019.04.13"]
[EventType "swiss"]
[EventCountry "GER"]
[SourceTitle "playchess.com"]
[Source "ChessBase"]
[SourceQuality "1"]
[TimeControl "40/5400+30:1800+30"]

1. d4 {[%emt 0:00:00]} d6 {[%emt 0:00:08]} 2. c4 {[%emt 0:00:00]} e5 {[%emt 0:00:18]} 3. d5 {[%emt 0:00:00]} f5 {[%emt 0:00:38]} 4. Nf3 {[%emt 0:00:49]} Nf6 {[%emt 0:01:48]} 5. Nc3 {[%emt 0:02:10]} g6 {[%emt 0:03:05]} (5... Be7 6. g3 O-O 7. Bg2 a5 8. O-O Na6 9. a3 Bd7 10. Rb1 Nc5 11. b4 axb4 12. axb4 Na4 13. Bd2 {0-1 (32) Mindlin,A (2436)-Donchenko,A (2563) Minsk 2017}) 6. h4 {[%emt 0:04:09] A41: 1 d4 d6: Tartakower System and Modern Defence} h6 {[%emt 0:04:59]} 7. Qc2 {[%emt 0:06:17]} Bg7 {[%emt 0:03:43]} 8. Nh2 $146 {[%emt 0:07:24]} ({Predecessor:} 8. Bd2 O-O 9. g3 c5 10. Bh3 Nbd7 11. e4 Ng4 12. O-O Ndf6 13. Rae1 fxe4 14. Bxg4 Bxg4 {0-1 (35) Keeve,M (1912)-Tischbierek,R (2438) Dresden 2010}) 8... Qe7 {[%emt 0:18:47]} 9. g4 {[%emt 0:04:36]} Qf7 {[%emt 0:07:50]} 10. gxf5 {[%emt 0:05:09]} gxf5 {[%emt 0:02:27]} 11. Rg1 {[%emt 0:06:36]} Nh5 {[%emt 0:09:18]} 12. e4 {[%emt 0:09:39]} f4 {[%emt 0:00:29]} 13. Be2 {[%emt 0:00:27]} Bf6 {[%emt 0:01:41]} 14. Nf3 {[%emt 0:07:21]} Na6 {[%emt 0:02:09]} 15. Bd2 {[%emt 0:00:53]} Bd7 {[%emt 0:01:36]} 16. Nb5 {[%emt 0:07:29]} Ke7 {[%emt 0:05:14]} 17. a4 {[%emt 0:05:22]} Kf8 {[%emt 0:00:39]} 18. Ba5 {[%emt 0:02:28]} Bd8 {[%emt 0:01:26]} 19. Bc3 {[%emt 0:01:44]} Bf6 {[%emt 0:01:58]} 20. O-O-O {[%emt 0:01:34]} Rg8 {[%emt 0:01:07]} 21. Rxg8+ {[%emt 0:00:42]} Kxg8 {[%emt 0:00:26]} 22. Rg1+ {[%emt 0:00:53]} Kh8 {[%emt 0:00:29]} 23. b4 {[%emt 0:01:37]} Ng7 {[%emt 0:02:37]} 24. Qd1 {[%emt 0:04:08]} Qe7 {[%emt 0:03:37]} 25. h5 {[%emt 0:02:54]} Be8 {[%emt 0:02:44]} 26. Nd2 {[%emt 0:04:03]} c5 $1 {[%emt 0:08:54]} 27. bxc5 {[%emt 0:03:28]} Nxc5 $15 {[%emt 0:00:09]} 28. Bb4 {[%emt 0:00:35]} a6 {[%emt 0:02:31]} 29. Nc3 {[%emt 0:00:23]} Qc7 {[%emt 0:02:18]} 30. Bxc5 {[%emt 0:05:46]} Qxc5 {[%emt 0:00:24]} 31. Qb3 {[%emt 0:03:17]} Qxf2 {[%emt 0:03:00]} 32. Rf1 {[%emt 0:00:07]} Qa7 {[%emt 0:00:12]} 33. Qb4 {[%emt 0:01:44]} Be7 {[%emt 0:02:03]} 34. Nf3 {[%emt 0:01:20]} b6 {[%emt 0:03:31]} 35. Kc2 {[%emt 0:01:12]} Qc7 {[%emt 0:00:22]} 36. Rb1 {[%emt 0:00:13]} Bd8 {[%emt 0:01:43]} 37. Rg1 {[%emt 0:00:10]} Rb8 {[%emt 0:01:28]} 38. Nd1 {[%emt 0:01:28]} Qc5 {[%emt 0:00:44]} 39. Qb3 {[%emt 0:00:49]} 0-1

[Event "OBEM 2019"]
[Site "Bremen"]
[Date "2019.04.17"]
[Round "6.4"]
[White "Peters, Frank"]
[Black "Stern, Philipp"]
[Result "1/2-1/2"]
[ECO "D45"]
[WhiteElo "2059"]
[BlackElo "1794"]
[Annotator "NA RC"]
[PlyCount "36"]
[EventDate "2019.04.13"]
[EventType "swiss"]
[EventCountry "GER"]
[SourceTitle "playchess.com"]
[Source "ChessBase"]
[SourceQuality "1"]
[TimeControl "40/5400+30:1800+30"]

1. c4 {[%emt 0:06:55]} Nf6 {[%emt 0:00:00]} 2. Nc3 {[%emt 0:00:11]} c6 {[%emt 0:00:54]} 3. Nf3 {[%emt 0:01:15]} d5 {[%emt 0:00:48]} 4. e3 {[%emt 0:00:19]} Nbd7 {[%emt 0:02:02]} 5. cxd5 {[%emt 0:01:57]} cxd5 {[%emt 0:00:51]} 6. d4 {[%emt 0:00:26]} e6 {[%emt 0:02:06]} 7. Bd3 {[%emt 0:00:18]} Be7 {[%emt 0:02:12]} 8. O-O {[%emt 0:00:25]} O-O {[%emt 0:00:49]} 9. Ne5 {[%emt 0:04:12]} Nxe5 {[%emt 0:05:54]} 10. dxe5 {[%emt 0:00:03]} Nd7 {[%emt 0:00:39]} 11. f4 {[%emt 0:00:55]} f5 {[%emt 0:05:49]} 12. exf6 {[%emt 0:13:18]} Nxf6 {[%emt 0:06:13]} 13. Kh1 {[%emt 0:01:07]} Bd7 {[%emt 0:05:26]} 14. e4 {[%emt 0:02:44]} dxe4 {[%emt 0:10:55]} (14... d4 $5 {[%cal Rd4c3]} 15. e5 dxc3 16. exf6 Bxf6 17. bxc3 Bc6 $11) 15. Nxe4 {[%emt 0:02:02]} Bc6 {[%emt 0:02:47]} 16. Qe2 {[%emt 0:03:56]} Nxe4 {[%emt 0:09:18]} 17. Bxe4 {[%emt 0:00:12]} Bxe4 {[%emt 0:00:10]} 18. Qxe4 $11 {[%emt 0:00:51]} Qd5 {[%emt 0:00:09]} 1/2-1/2

[Event "OBEM 2019"]
[Site "Bremen"]
[Date "2019.04.18"]
[Round "7.1"]
[White "Stern, Philipp"]
[Black "Margraf, Daniel"]
[Result "0-1"]
[ECO "B09"]
[WhiteElo "1794"]
[BlackElo "2238"]
[Annotator "NA"]
[PlyCount "72"]
[EventDate "2019.04.13"]
[EventType "swiss"]
[EventCountry "GER"]
[SourceTitle "playchess.com"]
[Source "ChessBase"]
[SourceQuality "1"]
[TimeControl "40/5400+30:1800+30"]

1. e4 {[%emt 0:00:00]} d6 {[%emt 0:00:00]} 2. d4 {[%emt 0:00:00]} Nf6 {[%emt 0:00:00]} 3. Nc3 {[%emt 0:00:00]} g6 {[%emt 0:02:09]} 4. f4 {[%emt 0:00:41]} Bg7 {[%emt 0:00:23]} 5. Nf3 {[%emt 0:00:16]} O-O {[%emt 0:00:06]} 6. Be3 {[%emt 0:01:55]} Na6 {[%emt 0:00:40]} 7. Qd2 {[%emt 0:05:59]} c5 {[%emt 0:01:32]} 8. Bxa6 {[%emt 0:09:53]} cxd4 {[%emt 0:00:29]} 9. Bxd4 {[%emt 0:01:38]} bxa6 {[%emt 0:00:05]} 10. O-O {[%emt 0:04:52]} Bb7 {[%emt 0:03:00]} 11. Rae1 {[%emt 0:04:31]} e5 {[%emt 0:19:21]} 12. fxe5 {[%emt 0:08:09]} dxe5 {[%emt 0:00:07]} 13. Bxe5 {[%emt 0:02:43]} Re8 {[%emt 0:08:46]} 14. Qxd8 {[%emt 0:13:19]} Raxd8 {[%emt 0:00:05]} 15. Bxf6 {[%emt 0:04:56]} Bxf6 {[%emt 0:00:19]} 16. Nd5 {[%emt 0:03:52]} Bxb2 {[%emt 0:05:50]} 17. c4 {[%emt 0:09:54]} Bg7 {[%emt 0:02:34]} 18. Rb1 {[%emt 0:02:08]} Ba8 {[%emt 0:05:22]} 19. Ng5 {[%emt 0:05:49]} Rd7 {[%emt 0:12:08]} 20. Nf6+ {[%emt 0:05:18]} Bxf6 {[%emt 0:01:07]} 21. Rxf6 {[%emt 0:00:05]} h6 {[%emt 0:02:14]} 22. Nf3 {[%emt 0:01:35]} Bb7 {[%emt 0:06:50]} 23. c5 {[%emt 0:02:07]} Rc7 {[%emt 0:01:37]} 24. Nd2 {[%emt 0:02:48]} Kg7 {[%emt 0:04:27]} 25. Rd6 {[%emt 0:00:54]} Re5 {[%emt 0:02:25]} 26. c6 {[%emt 0:03:03]} Rxc6 {[%emt 0:03:38]} 27. Rd7 {[%emt 0:00:25]} Bc8 {[%emt 0:00:25]} 28. Rxa7 {[%emt 0:00:09]} Rc2 {[%emt 0:01:24]} 29. Ra8 {[%emt 0:03:42]} Rxd2 {[%emt 0:03:23]} 30. Rxc8 {[%emt 0:00:09]} Rxe4 {[%emt 0:00:10]} 31. h3 {[%emt 0:02:31]} Ree2 {[%emt 0:00:06]} 32. g4 {[%emt 0:00:09]} Rg2+ {[%emt 0:00:23]} 33. Kf1 {[%emt 0:00:08]} Rh2 {[%emt 0:00:08]} 34. Kg1 {[%emt 0:00:12]} Rdg2+ {[%emt 0:00:50]} 35. Kf1 {[%emt 0:00:11]} Rxa2 {[%emt 0:00:12]} 36. Kg1 {[%emt 0:00:30]} Rxh3 {[%emt 0:00:51]} 0-1

[Event "OBEM 2019"]
[Site "Bremen"]
[Date "2019.04.18"]
[Round "7.2"]
[White "Issing, Peter"]
[Black "Hundack, Rolf"]
[Result "0-1"]
[ECO "D30"]
[WhiteElo "2156"]
[BlackElo "2140"]
[Annotator "NA"]
[PlyCount "128"]
[EventDate "2019.04.13"]
[EventType "swiss"]
[EventCountry "GER"]
[SourceTitle "playchess.com"]
[Source "ChessBase"]
[SourceQuality "1"]
[TimeControl "40/5400+30:1800+30"]

1. d4 {[%emt 0:00:00]} d5 {[%emt 0:04:02]} 2. c4 {[%emt 0:00:00]} e6 {[%emt 0:00:30]} 3. Nf3 {[%emt 0:00:16]} c6 {[%emt 0:03:13]} 4. Qc2 {[%emt 0:06:23]} Bd6 {[%emt 0:06:40]} 5. Bg5 {[%emt 0:03:14]} f6 {[%emt 0:04:03]} 6. Bh4 {[%emt 0:02:46]} Nh6 {[%emt 0:03:56]} 7. Bg3 {[%emt 0:08:37]} O-O {[%emt 0:17:31]} 8. e3 {[%emt 0:00:52]} f5 {[%emt 0:09:02]} 9. Bxd6 {[%emt 0:04:05]} Qxd6 {[%emt 0:00:13]} 10. Nc3 {[%emt 0:01:21]} Nd7 {[%emt 0:01:36]} 11. Bd3 {[%emt 0:01:09]} Nf6 {[%emt 0:00:34]} 12. O-O-O {[%emt 0:06:00]} Nf7 {[%emt 0:06:17]} 13. h3 {[%emt 0:16:39]} e5 {[%emt 0:10:25]} 14. dxe5 {[%emt 0:02:41]} Nxe5 {[%emt 0:00:41]} 15. Be2 {[%emt 0:00:52]} Be6 {[%emt 0:03:44]} 16. Kb1 {[%emt 0:07:47]} Kh8 {[%emt 0:07:13]} 17. cxd5 {[%emt 0:02:27]} Nxd5 {[%emt 0:01:47]} 18. Rd2 {[%emt 0:10:09]} Bg8 {[%emt 0:04:24]} 19. Rhd1 {[%emt 0:03:15]} Qf6 {[%emt 0:02:42]} 20. Nd4 {[%emt 0:03:27]} b5 {[%emt 0:01:53]} 21. f4 {[%emt 0:11:21]} Nd7 {[%emt 0:07:30]} 22. Nxd5 {[%emt 0:00:33]} Bxd5 {[%emt 0:00:23]} 23. Bf3 {[%emt 0:00:13]} Nb6 {[%emt 0:01:09]} 24. Nxc6 {[%emt 0:01:15]} Bxf3 {[%emt 0:00:19]} 25. gxf3 {[%emt 0:00:21]} Nc4 {[%emt 0:00:05]} 26. Ne5 {[%emt 0:01:44]} Nxe3 {[%emt 0:00:46]} 27. Nd7 {[%emt 0:03:11]} Qh4 {[%emt 0:01:16]} 28. Qb3 {[%emt 0:01:14]} Nxd1 {[%emt 0:00:23]} 29. Nxf8 {[%emt 0:00:17]} Rxf8 {[%emt 0:00:19]} 30. Qxd1 {[%emt 0:01:43]} Qxf4 {[%emt 0:00:47]} 31. Rd8 {[%emt 0:00:20]} Qb4 {[%emt 0:00:47]} 32. a3 {[%emt 0:00:32]} Qe7 {[%emt 0:00:13]} 33. Rxf8+ {[%emt 0:01:01]} Qxf8 {[%emt 0:00:02]} 34. Qd7 {[%emt 0:00:05]} a6 {[%emt 0:00:49]} 35. Qc6 {[%emt 0:00:17]} h6 {[%emt 0:00:29]} 36. Qxa6 {[%emt 0:00:10]} Qc5 {[%emt 0:00:43]} 37. Qg6 {[%emt 0:01:08]} Qd5 {[%emt 0:00:24]} 38. h4 {[%emt 0:00:48]} Qd3+ {[%emt 0:00:34]} 39. Ka2 {[%emt 0:00:28]} Qc4+ {[%emt 0:00:30]} 40. Kb1 {[%emt 0:00:27]} Qf1+ {[%emt 0:01:21]} 41. Ka2 {[%emt 0:30:33]} Qc4+ {[%emt 0:07:55]} 42. Kb1 {[%emt 0:00:00]} Qxh4 {[%emt 0:03:35]} 43. Qe8+ {[%emt 0:00:00]} Kh7 {[%emt 0:00:06]} 44. Qxb5 {[%emt 0:00:00]} Qe1+ {[%emt 0:00:46]} 45. Ka2 {[%emt 0:00:00]} Qe6+ {[%emt 0:00:34]} 46. Qb3 {[%emt 0:00:00]} Qg6 {[%emt 0:02:55]} 47. a4 {[%emt 0:00:00]} h5 {[%emt 0:00:11]} 48. a5 {[%emt 0:00:00]} h4 {[%emt 0:00:32]} 49. f4 {[%emt 0:00:00]} Qa6 {[%emt 0:06:50]} 50. Qc3 {[%emt 0:00:00]} Qf1 {[%emt 0:02:08]} 51. Qe5 {[%emt 0:00:00]} Qc4+ {[%emt 0:01:04]} 52. Ka3 {[%emt 0:00:00]} Qd3+ {[%emt 0:01:54]} 53. b3 {[%emt 0:00:00]} h3 {[%emt 0:00:30]} 54. Qe8 {[%emt 0:00:56]} Qd6+ {[%emt 0:00:38]} 55. b4 {[%emt 0:00:19]} Qd3+ {[%emt 0:02:15]} 56. Kb2 {[%emt 0:01:27]} Qd2+ {[%emt 0:00:45]} 57. Ka3 {[%emt 0:00:20]} Qc3+ {[%emt 0:00:45]} 58. Ka2 {[%emt 0:00:29]} Qf3 {[%emt 0:01:17]} 59. Qf7 {[%emt 0:01:37]} Qg4 {[%emt 0:01:01]} 60. a6 {[%emt 0:03:26]} h2 {[%emt 0:02:27]} 61. Qb7 {[%emt 0:00:18]} Qe2+ {[%emt 0:00:32]} 62. Ka3 {[%emt 0:00:26]} Qd3+ {[%emt 0:00:49]} 63. Kb2 {[%emt 0:00:17]} Qd2+ {[%emt 0:00:16]} 64. Ka3 {[%emt 0:00:18]} Qc1+ {[%emt 0:03:00]} 0-1

[Event "OBEM 2019"]
[Site "Bremen"]
[Date "2019.04.18"]
[Round "7.3"]
[White "Elmali, Timur"]
[Black "Norbach, Alexander"]
[Result "1-0"]
[ECO "D48"]
[WhiteElo "2121"]
[BlackElo "1972"]
[Annotator "NA"]
[PlyCount "47"]
[EventDate "2019.04.13"]
[EventType "swiss"]
[EventCountry "GER"]
[SourceTitle "playchess.com"]
[Source "ChessBase"]
[SourceQuality "1"]
[TimeControl "40/5400+30:1800+30"]

1. d4 {[%emt 0:00:00]} d5 {[%emt 0:00:00]} 2. Nf3 {[%emt 0:00:34]} Nf6 {[%emt 0:00:00]} 3. c4 {[%emt 0:00:48]} c6 {[%emt 0:00:00]} 4. e3 {[%emt 0:00:17]} e6 {[%emt 0:00:12]} 5. Nc3 {[%emt 0:00:18]} Nbd7 {[%emt 0:00:12]} 6. Bd3 {[%emt 0:00:47]} dxc4 {[%emt 0:00:35]} 7. Bxc4 {[%emt 0:00:05]} b5 {[%emt 0:00:10]} 8. Bd3 {[%emt 0:00:33]} a6 {[%emt 0:01:07]} 9. O-O {[%emt 0:01:07]} c5 {[%emt 0:01:05]} 10. a4 {[%emt 0:01:47]} b4 {[%emt 0:02:18]} 11. Ne4 {[%emt 0:05:07]} Bb7 {[%emt 0:00:55]} 12. Nxf6+ {[%emt 0:08:17]} Nxf6 {[%emt 0:03:33]} 13. dxc5 {[%emt 0:04:54]} Bxc5 {[%emt 0:00:58]} 14. b3 {[%emt 0:02:43]} O-O {[%emt 0:19:16]} 15. Bb2 {[%emt 0:00:47]} Qe7 {[%emt 0:00:56]} 16. Qe2 {[%emt 0:01:32]} Nd5 {[%emt 0:09:01]} 17. Rac1 {[%emt 0:00:56]} f6 {[%emt 0:00:55]} 18. Qc2 {[%emt 0:02:03]} Rac8 {[%emt 0:00:57]} 19. Bxh7+ {[%emt 0:02:02]} Kh8 {[%emt 0:00:19]} 20. Nh4 {[%emt 0:01:40]} Qe8 {[%emt 0:12:44]} 21. Bg6 {[%emt 0:04:49]} Qc6 {[%emt 0:05:03]} 22. Qe2 {[%emt 0:01:15]} Rfd8 {[%emt 0:04:34]} 23. Qh5+ {[%emt 0:00:06]} Kg8 {[%emt 0:00:16]} 24. Bh7+ {[%emt 0:00:55]} 1-0

[Event "OBEM 2019"]
[Site "Bremen"]
[Date "2019.04.18"]
[Round "7.4"]
[White "Buescher, Andre"]
[Black "Pienski, Olaf"]
[Result "1/2-1/2"]
[ECO "B07"]
[WhiteElo "2019"]
[BlackElo "2081"]
[Annotator "NA"]
[PlyCount "98"]
[EventDate "2019.04.13"]
[EventType "swiss"]
[EventCountry "GER"]
[SourceTitle "playchess.com"]
[Source "ChessBase"]
[SourceQuality "1"]
[TimeControl "40/5400+30:1800+30"]

1. d4 {[%emt 0:00:00]} g6 {[%emt 0:00:14]} 2. e4 {[%emt 0:01:59]} d6 {[%emt 0:01:37]} 3. Nc3 {[%emt 0:00:25]} c6 {[%emt 0:00:43]} 4. Be3 {[%emt 0:02:11]} Nf6 {[%emt 0:00:41]} 5. h3 {[%emt 0:03:46]} Nbd7 {[%emt 0:06:43]} 6. Qd2 {[%emt 0:03:14]} b5 {[%emt 0:01:37]} 7. Bd3 {[%emt 0:00:54]} a6 {[%emt 0:08:39]} 8. a4 {[%emt 0:06:36]} Bb7 {[%emt 0:06:46]} 9. Nf3 {[%emt 0:05:23]} e5 {[%emt 0:11:53]} 10. O-O {[%emt 0:04:01]} Bg7 {[%emt 0:04:25]} 11. Bh6 {[%emt 0:03:54]} O-O {[%emt 0:00:26]} 12. Bxg7 {[%emt 0:00:54]} Kxg7 {[%emt 0:00:07]} 13. Rfe1 {[%emt 0:10:17]} Qc7 {[%emt 0:09:29]} 14. dxe5 {[%emt 0:10:15]} dxe5 {[%emt 0:00:18]} 15. Qe3 {[%emt 0:01:19]} Rfe8 {[%emt 0:04:27]} 16. Rad1 {[%emt 0:01:11]} Nf8 {[%emt 0:05:10]} 17. Ne2 {[%emt 0:05:38]} Ne6 {[%emt 0:02:47]} 18. Ng5 {[%emt 0:01:51]} Nxg5 {[%emt 0:02:05]} 19. Qxg5 {[%emt 0:00:12]} h6 {[%emt 0:00:43]} 20. Qe3 {[%emt 0:02:15]} Rad8 {[%emt 0:04:20]} 21. c3 {[%emt 0:06:15]} Bc8 {[%emt 0:02:29]} 22. Nc1 {[%emt 0:05:13]} Be6 {[%emt 0:01:33]} 23. axb5 {[%emt 0:04:03]} axb5 {[%emt 0:00:20]} 24. Bf1 {[%emt 0:01:21]} Nd7 {[%emt 0:03:19]} 25. Nd3 {[%emt 0:03:25]} c5 {[%emt 0:03:56]} 26. g3 {[%emt 0:01:14]} Bc4 {[%emt 0:01:39]} 27. Rd2 {[%emt 0:00:54]} Nb6 {[%emt 0:02:05]} 28. f4 {[%emt 0:03:00]} Bxd3 {[%emt 0:01:13]} 29. Bxd3 {[%emt 0:04:38]} c4 {[%emt 0:00:34]} 30. Bf1 {[%emt 0:00:22]} Rxd2 {[%emt 0:00:38]} 31. Qxd2 {[%emt 0:00:03]} Rd8 {[%emt 0:00:32]} 32. Qe3 {[%emt 0:00:54]} Na4 {[%emt 0:00:40]} 33. Re2 {[%emt 0:01:18]} Rd3 {[%emt 0:01:24]} 34. Qf2 {[%emt 0:00:33]} Nc5 {[%emt 0:01:58]} 35. Re3 {[%emt 0:02:29]} Rd1 {[%emt 0:02:34]} 36. Kh2 {[%emt 0:00:14]} Qd6 {[%emt 0:02:48]} 37. Qf3 {[%emt 0:02:47]} Rd2+ {[%emt 0:00:21]} 38. Re2 {[%emt 0:01:33]} Na4 {[%emt 0:02:50]} 39. fxe5 {[%emt 0:00:32]} Rxe2+ {[%emt 0:00:12]} 40. Qxe2 {[%emt 0:01:25]} Qxe5 {[%emt 0:00:17]} 41. Qc2 {[%emt 0:30:40]} Nc5 {[%emt 0:30:49]} 42. Bg2 {[%emt 0:01:00]} h5 {[%emt 0:02:19]} 43. h4 {[%emt 0:00:00]} Qd6 {[%emt 0:00:00]} 44. Qe2 {[%emt 0:00:00]} Qd3 {[%emt 0:00:00]} 45. Qf2 {[%emt 0:00:00]} Nxe4 {[%emt 0:00:00]} 46. Bxe4 {[%emt 0:00:00]} Qxe4 {[%emt 0:00:00]} 47. Qc5 {[%emt 0:00:00]} Qe2+ {[%emt 0:00:00]} 48. Kh3 {[%emt 0:00:00]} Qf1+ {[%emt 0:00:00]} 49. Kh2 {[%emt 0:00:00]} Qe2+ {[%emt 0:06:50]} 1/2-1/2

[Event "OBEM 2019"]
[Site "Bremen"]
[Date "2019.04.19"]
[Round "8.2"]
[White "Pienski, Olaf"]
[Black "Elmali, Timur"]
[Result "1/2-1/2"]
[ECO "B07"]
[WhiteElo "2081"]
[BlackElo "2121"]
[Annotator "NA"]
[PlyCount "175"]
[EventDate "2019.04.13"]
[EventType "swiss"]
[EventCountry "GER"]
[SourceTitle "playchess.com"]
[Source "ChessBase"]
[SourceQuality "1"]
[TimeControl "40/5400+30:1800+30"]

1. e4 {[%emt 0:00:00]} d6 {[%emt 0:00:00]} 2. d4 {[%emt 0:00:12]} Nf6 {[%emt 0:00:00]} 3. Nc3 {[%emt 0:00:41]} g6 {[%emt 0:00:00]} 4. Be3 {[%emt 0:02:07]} c6 {[%emt 0:00:02]} 5. a4 {[%emt 0:00:44]} Bg7 {[%emt 0:03:42]} 6. h3 {[%emt 0:01:15]} Qa5 {[%emt 0:02:21]} 7. Qd2 {[%emt 0:05:06] B07: Pirc Defence: Miscellaneous Systems} b5 {[%emt 0:01:45]} 8. Bd3 {[%emt 0:11:50]} (8. b4 $1 $16 {[%cal Rb4a5]} Qc7 (8... Qxb4 9. axb5 c5 10. Nf3 O-O 11. Bd3 cxd4 12. Bxd4 e5 13. Ra4 Qxa4 14. Nxa4 exd4 {1-0 (33) Socko,B (2593)-Artemiev,V (2691) Riadh 2017}) 9. axb5) 8... Nbd7 {[%emt 0:12:15] [#]} 9. Nf3 {[%emt 0:03:35]} (9. b4 $1 $18 {[%cal Rb4a5]} Qd8 10. axb5 cxb5 11. Nxb5 (11. Bxb5 Bb7 $16)) 9... b4 {[%emt 0:01:53]} 10. Ne2 {[%emt 0:02:02]} Rb8 {[%emt 0:03:32]} 11. O-O {[%emt 0:02:37]} O-O $146 {[%emt 0:00:08]} ({Predecessor:} 11... Ba6 12. Rfe1 O-O 13. Ng3 Bxd3 14. Qxd3 {1-0 (32) Paakkonen,T (2261)-Linnanen,L (2190) Finland 2007}) 12. Nc1 {[%emt 0:11:54]} c5 {[%emt 0:05:53]} 13. c3 {[%emt 0:05:25]} (13. Nb3 $11 Qc7 14. dxc5) 13... bxc3 {[%emt 0:06:40]} 14. bxc3 {[%emt 0:00:09] [#]} (14. Qxc3 $15 Qb4 15. Ne2) 14... c4 $1 {[%emt 0:00:44]} 15. e5 {[%emt 0:11:35]} cxd3 {[%emt 0:16:10]} 16. exf6 {[%emt 0:01:13]} Nxf6 {[%emt 0:00:07]} 17. Na2 {[%emt 0:04:55]} Ba6 {[%emt 0:15:10]} 18. Rfc1 {[%emt 0:04:35]} Ne4 {[%emt 0:02:23]} 19. Qe1 {[%emt 0:01:00]} Rfc8 {[%emt 0:00:54]} 20. Bd2 {[%emt 0:02:33]} Nxd2 {[%emt 0:03:43]} 21. Qxd2 {[%emt 0:00:44]} Qh5 {[%emt 0:02:13]} 22. Re1 {[%emt 0:06:32]} e5 {[%emt 0:01:56]} 23. Nb4 {[%emt 0:01:29]} Bb7 {[%emt 0:01:16]} 24. d5 {[%emt 0:13:19] [#]} (24. Qxd3 $142 a5 25. Nc2) 24... e4 $1 {[%emt 0:00:40]} 25. Nd4 {[%emt 0:00:57]} Bxd4 {[%emt 0:00:31]} 26. cxd4 {[%emt 0:00:06]} a5 {[%emt 0:05:37]} 27. Nc6 {[%emt 0:00:22]} Bxc6 {[%emt 0:00:10]} 28. dxc6 {[%emt 0:00:03]} Qd5 {[%emt 0:00:21]} 29. Rab1 {[%emt 0:03:13]} (29. f3 {is a better defense.} exf3 30. gxf3) 29... Rxb1 {[%emt 0:00:50]} 30. Rxb1 {[%emt 0:00:02]} Qxd4 {[%emt 0:03:13]} 31. Qxa5 {[%emt 0:00:59]} Kg7 {[%emt 0:02:46]} (31... Qc4 $142 32. Qb5 Rxc6 33. Qb8+ Kg7 34. Qb2+ Qc3 35. Qxc3+ Rxc3) 32. Qa6 {[%emt 0:01:00] [#]} Rc7 $2 {[%emt 0:00:22]} ({Better is} 32... Re8 $1 $19 33. c7 Qc3) 33. Qb7 {[%emt 0:01:02]} Rxb7 {[%emt 0:04:18]} 34. cxb7 {[%emt 0:00:03]} d2 {[%emt 0:00:15]} 35. b8=Q {[%emt 0:01:01]} d1=Q+ {[%emt 0:00:08]} 36. Rxd1 {[%emt 0:00:12]} Qxd1+ {[%emt 0:00:04]} 37. Kh2 {[%emt 0:00:11]} Qxa4 {[%emt 0:00:24]} 38. Qxd6 {[%emt 0:00:10]} Qe8 {[%emt 0:02:05]} 39. Qd4+ {[%emt 0:00:52]} f6 {[%emt 0:00:19]} 40. Qa7+ {[%emt 0:02:07]} Qf7 {[%emt 0:00:14]} 41. Qd4 {[%emt 0:30:19]} Qe7 {[%emt 0:30:10]} 42. g3 {[%emt 0:00:00]} g5 $17 {[%emt 0:00:00]} 43. Kg2 {[%emt 0:00:00]} Kg6 {[%emt 0:00:00]} 44. Qd5 {[%emt 0:00:00]} Kg7 {[%emt 0:00:00]} 45. g4 {[%emt 0:00:00]} h5 {[%emt 0:00:00]} 46. gxh5 {[%emt 0:00:00]} Kh6 {[%emt 0:00:00]} 47. Qf5 {[%emt 0:00:00]} Kxh5 {[%emt 0:00:00]} 48. h4 {[%emt 0:00:00]} Qe5 {[%emt 0:00:00]} 49. Qh7+ {[%emt 0:01:15]} Kg4 {[%emt 0:00:00]} 50. hxg5 {[%emt 0:00:57]} Kxg5 {[%emt 0:00:00]} 51. Qg7+ {[%emt 0:00:26]} Kf4 {[%emt 0:00:00]} 52. Qg3+ {[%emt 0:00:56]} Kf5 {[%emt 0:00:00]} 53. Qg8 {[%emt 0:01:25]} Qe6 {[%emt 0:00:00]} 54. Qh7+ {[%emt 0:00:20]} Ke5 {[%emt 0:00:00]} 55. Qc7+ {[%emt 0:00:26]} Qd6 {[%emt 0:00:00]} 56. Qc3+ {[%emt 0:00:43]} Ke6 {[%emt 0:00:00]} 57. Qc8+ {[%emt 0:01:15]} Kf7 {[%emt 0:00:00]} 58. Qf5 {[%emt 0:00:57]} Qe5 {[%emt 0:00:00]} 59. Qh7+ {[%emt 0:00:17]} Ke6 {[%emt 0:00:00]} 60. Qg8+ {[%emt 0:00:16]} Kd6 {[%emt 0:00:00]} 61. Qd8+ {[%emt 0:00:40]} Kc5 {[%emt 0:00:00]} 62. Qa5+ {[%emt 0:00:33]} Kd4 {[%emt 0:00:00]} 63. Qa1+ {[%emt 0:00:21]} Kd5 {[%emt 0:00:00]} 64. Qa5+ {[%emt 0:00:09]} Ke6 {[%emt 0:00:00]} 65. Qa6+ {[%emt 0:00:33]} Kf5 {[%emt 0:00:00]} 66. Qc8+ {[%emt 0:00:12]} Kf4 {[%emt 0:00:00]} 67. Qh3 {[%emt 0:01:33]} Qg5+ {[%emt 0:00:00]} 68. Kf1 {[%emt 0:00:14]} Qb5+ {[%emt 0:00:00]} 69. Kg1 {[%emt 0:01:00]} Qb1+ {[%emt 0:00:00]} 70. Kg2 {[%emt 0:00:51]} Qd1 {[%emt 0:01:33]} 71. Qe3+ {[%emt 0:00:26]} Kf5 {[%emt 0:00:16]} 72. Qc5+ {[%emt 0:00:14]} Kg6 {[%emt 0:00:50]} 73. Qe3 {[%emt 0:00:30]} f5 {[%emt 0:01:29]} 74. Qb6+ {[%emt 0:00:44]} Kh5 {[%emt 0:00:12]} 75. Qc5 {[%emt 0:01:05]} Kg4 {[%emt 0:01:13]} 76. Qe5 {[%emt 0:00:42]} Qf3+ {[%emt 0:00:12]} 77. Kf1 {[%emt 0:00:26]} Qf4 {[%emt 0:02:20]} 78. Qg7+ {[%emt 0:00:08]} Qg5 {[%emt 0:00:38]} 79. Qe5 {[%emt 0:00:14]} Kf3 {[%emt 0:00:46]} 80. Qc3+ {[%emt 0:00:56]} Kg4 {[%emt 0:04:13]} 81. Qg3+ {[%emt 0:00:05]} Kh5 {[%emt 0:00:09]} 82. Qe5 {[%emt 0:00:10]} Qg4 {[%emt 0:01:16]} 83. Qh8+ {[%emt 0:00:23]} Kg5 {[%emt 0:00:08]} 84. Qg7+ {[%emt 0:00:15]} Kh4 {[%emt 0:00:40]} 85. Qh6+ {[%emt 0:00:27]} Qh5 {[%emt 0:00:18]} 86. Qf4+ {[%emt 0:00:12]} Qg4 {[%emt 0:00:15]} 87. Qh6+ {[%emt 0:00:05]} Qh5 {[%emt 0:00:11]} 88. Qf4+ {[%emt 0:00:06]} 1/2-1/2